[Event "Titled Tuesday Blitz January 31 Late 2023"]
[White "Smith, Garrett L"]
[Black "Tan, Zhongyi"]
[WhiteFideId "2024829"]
[BlackFideId "8603642"]
[WhiteElo "2047"]
[BlackElo "2517"]
[Result "0-1"]
[Round "01"]
[TimeControl "180+2"]
[Date "2023.01.31"]
[WhiteClock "0:00:16"]
[BlackClock "0:01:09"]

1. e4 {[%clk 0:03:00]}  c5 {[%clk 0:02:59]} 2. a3 {[%clk 0:03:00]}  d5 {[%clk 0:02:52]} 3. exd5 {[%clk 0:03:00]}  Nf6 {[%clk 0:02:49]} 4. Bb5+ {[%clk 0:02:57]}  Bd7 {[%clk 0:02:47]} 5. Bxd7+ {[%clk 0:02:56]}  Qxd7 {[%clk 0:02:43]} 6. c4 {[%clk 0:02:57]}  e6 {[%clk 0:02:41]} 7. dxe6 {[%clk 0:02:52]}  fxe6 {[%clk 0:02:40]} 8. Nf3 {[%clk 0:02:44]}  Nc6 {[%clk 0:02:40]} 9. O-O {[%clk 0:02:41]}  Bd6 {[%clk 0:02:40]} 10. Nc3 {[%clk 0:02:36]}  O-O-O {[%clk 0:02:39]} 11. Re1 {[%clk 0:02:29]}  g5 {[%clk 0:02:38]} 12. Nxg5 {[%clk 0:02:19]}  Nd4 {[%clk 0:02:35]} 13. d3 {[%clk 0:02:13]}  Rhg8 {[%clk 0:02:31]} 14. Nce4 {[%clk 0:02:02]}  Nxe4 {[%clk 0:02:23]} 15. Rxe4 {[%clk 0:01:54]}  Rdf8 {[%clk 0:02:07]} 16. Be3 {[%clk 0:01:46]}  Rf5 {[%clk 0:01:35]} 17. h4 {[%clk 0:01:32]}  h6 {[%clk 0:01:34]} 18. Bxd4 {[%clk 0:01:29]}  hxg5 {[%clk 0:01:33]} 19. Be3 {[%clk 0:01:25]}  gxh4 {[%clk 0:01:32]} 20. Rxh4 {[%clk 0:01:25]}  Qc6 {[%clk 0:01:28]} 21. Re4 {[%clk 0:01:17]}  Rh8 {[%clk 0:01:21]} 22. Qg4 {[%clk 0:00:37]}  Rfh5 {[%clk 0:01:19]} 23. Qxe6+ {[%clk 0:00:31]}  Kb8 {[%clk 0:01:19]} 24. Kf1 {[%clk 0:00:22]}  Rh1+ {[%clk 0:01:18]} 25. Ke2 {[%clk 0:00:23]}  Rxa1 {[%clk 0:01:18]} 26. Rg4 {[%clk 0:00:19]}  a6 {[%clk 0:01:10]} 27. Rg8+ {[%clk 0:00:15]}  Rxg8 {[%clk 0:01:09]} 28. Qxg8+ {[%clk 0:00:16]}  Ka7 {[%clk 0:01:09]} 0-1


[Site "https://www.chess.com"]

[Event "Titled Tuesday Blitz January 31 Late 2023"]
[White "Nigmatov, Ortik"]
[Black "Todev, Simeon"]
[WhiteFideId "14202131"]
[BlackFideId "2925133"]
[WhiteElo "2438"]
[BlackElo "2033"]
[Result "1-0"]
[Round "01"]
[TimeControl "180+2"]
[Date "2023.01.31"]
[WhiteClock "0:00:07"]
[BlackClock "0:00:03"]

1. e4 {[%clk 0:02:57]}  c5 {[%clk 0:02:53]} 2. Nf3 {[%clk 0:02:57]}  Nc6 {[%clk 0:02:52]} 3. d4 {[%clk 0:02:56]}  cxd4 {[%clk 0:02:52]} 4. Nxd4 {[%clk 0:02:57]}  Nf6 {[%clk 0:02:49]} 5. Nc3 {[%clk 0:02:57]}  a6 {[%clk 0:02:50]} 6. Nxc6 {[%clk 0:02:54]}  bxc6 {[%clk 0:02:50]} 7. e5 {[%clk 0:02:53]}  Ng8 {[%clk 0:02:48]} 8. Bc4 {[%clk 0:02:52]}  g6 {[%clk 0:02:45]} 9. O-O {[%clk 0:02:47]}  Bg7 {[%clk 0:02:43]} 10. Qf3 {[%clk 0:02:44]}  e6 {[%clk 0:02:43]} 11. Ne4 {[%clk 0:02:41]}  Bxe5 {[%clk 0:02:38]} 12. Bf4 {[%clk 0:02:39]}  Qc7 {[%clk 0:02:15]} 13. Bxe5 {[%clk 0:02:04]}  Qxe5 {[%clk 0:02:15]} 14. Rfe1 {[%clk 0:01:27]}  d5 {[%clk 0:01:59]} 15. Ng3 {[%clk 0:00:57]}  Qf6 {[%clk 0:01:49]} 16. Qa3 {[%clk 0:00:57]}  Ne7 {[%clk 0:01:35]} 17. Bd3 {[%clk 0:00:52]}  O-O {[%clk 0:01:35]} 18. f4 {[%clk 0:00:47]}  Bd7 {[%clk 0:01:20]} 19. Re5 {[%clk 0:00:46]}  Rab8 {[%clk 0:01:08]} 20. b3 {[%clk 0:00:43]}  Qxf4 {[%clk 0:00:54]} 21. Rae1 {[%clk 0:00:43]}  Qb4 {[%clk 0:00:43]} 22. Qc1 {[%clk 0:00:39]}  c5 {[%clk 0:00:36]} 23. Kh1 {[%clk 0:00:38]}  c4 {[%clk 0:00:37]} 24. Nh5 {[%clk 0:00:32]}  cxd3 {[%clk 0:00:23]} 25. Nf6+ {[%clk 0:00:12]}  Kg7 {[%clk 0:00:18]} 26. c3 {[%clk 0:00:12]}  Qh4 {[%clk 0:00:12]} 27. Nxd7 {[%clk 0:00:10]}  Nf5 {[%clk 0:00:08]} 28. Nxf8 {[%clk 0:00:08]}  Ng3+ {[%clk 0:00:07]} 29. Kg1 {[%clk 0:00:09]}  Ne2+ {[%clk 0:00:07]} 30. R1xe2 {[%clk 0:00:09]}  dxe2 {[%clk 0:00:08]} 31. Nd7 {[%clk 0:00:09]}  Rd8 {[%clk 0:00:05]} 32. Nc5 {[%clk 0:00:09]}  Rc8 {[%clk 0:00:04]} 33. Nd3 {[%clk 0:00:09]}  d4 {[%clk 0:00:04]} 34. c4 {[%clk 0:00:10]}  Qg4 {[%clk 0:00:04]} 35. Qd2 {[%clk 0:00:09]}  f6 {[%clk 0:00:02]} 36. Rxe2 {[%clk 0:00:09]}  e5 {[%clk 0:00:02]} 37. h3 {[%clk 0:00:10]}  Qf5 {[%clk 0:00:03]} 38. Nf2 {[%clk 0:00:10]}  Qb1+ {[%clk 0:00:03]} 39. Re1 {[%clk 0:00:10]}  Qf5 {[%clk 0:00:04]} 40. Ne4 {[%clk 0:00:10]}  Qe6 {[%clk 0:00:04]} 41. c5 {[%clk 0:00:10]}  Rd8 {[%clk 0:00:04]} 42. b4 {[%clk 0:00:10]}  Qc6 {[%clk 0:00:05]} 43. Nd6 {[%clk 0:00:11]}  a5 {[%clk 0:00:03]} 44. a3 {[%clk 0:00:11]}  axb4 {[%clk 0:00:04]} 45. axb4 {[%clk 0:00:12]}  Qd5 {[%clk 0:00:04]} 46. Kh1 {[%clk 0:00:12]}  Rb8 {[%clk 0:00:04]} 47. Rc1 {[%clk 0:00:10]}  e4 {[%clk 0:00:03]} 48. b5 {[%clk 0:00:11]}  e3 {[%clk 0:00:03]} 49. Qd3 {[%clk 0:00:11]}  Qe5 {[%clk 0:00:02]} 50. b6 {[%clk 0:00:11]}  e2 {[%clk 0:00:02]} 51. Re1 {[%clk 0:00:04]}  Qxc5 {[%clk 0:00:02]} 52. Ne4 {[%clk 0:00:04]}  Qxb6 {[%clk 0:00:02]} 53. Rxe2 {[%clk 0:00:04]}  Qb1+ {[%clk 0:00:02]} 54. Qxb1 {[%clk 0:00:05]}  Rxb1+ {[%clk 0:00:03]} 55. Kh2 {[%clk 0:00:05]}  d3 {[%clk 0:00:02]} 56. Rd2 {[%clk 0:00:06]}  Rb3 {[%clk 0:00:03]} 57. Nf2 {[%clk 0:00:06]}  f5 {[%clk 0:00:03]} 58. Nxd3 {[%clk 0:00:07]}  Kf6 {[%clk 0:00:01]} 59. Ne1 {[%clk 0:00:07]}  Re3 {[%clk 0:00:01]} 60. Nf3 {[%clk 0:00:07]}  Re7 {[%clk 0:00:01]} 61. Rd6+ {[%clk 0:00:07]}  Kg7 {[%clk 0:00:02]} 62. Kg3 {[%clk 0:00:07]}  Rf7 {[%clk 0:00:03]} 63. h4 {[%clk 0:00:07]}  Re7 {[%clk 0:00:04]} 64. Kf4 {[%clk 0:00:08]}  Re4+ {[%clk 0:00:04]} 65. Kg3 {[%clk 0:00:08]}  Rg4+ {[%clk 0:00:05]} 66. Kf2 {[%clk 0:00:09]}  Re4 {[%clk 0:00:05]} 67. Rd4 {[%clk 0:00:09]}  Re7 {[%clk 0:00:04]} 68. Kg3 {[%clk 0:00:10]}  Ra7 {[%clk 0:00:04]} 69. Kf4 {[%clk 0:00:10]}  Kf6 {[%clk 0:00:04]} 70. Rd6+ {[%clk 0:00:10]}  Kg7 {[%clk 0:00:05]} 71. Kg5 {[%clk 0:00:10]}  h6+ {[%clk 0:00:04]} 72. Kf4 {[%clk 0:00:10]}  Ra4+ {[%clk 0:00:05]} 73. Kg3 {[%clk 0:00:10]}  Rg4+ {[%clk 0:00:05]} 74. Kf2 {[%clk 0:00:11]}  Re4 {[%clk 0:00:04]} 75. g3 {[%clk 0:00:06]}  Ra4 {[%clk 0:00:03]} 76. Ke3 {[%clk 0:00:07]} 1-0


[Site "https://www.chess.com"]

[Event "Titled Tuesday Blitz January 31 Late 2023"]
[White "Alfaro, William"]
[Black "Petkov, Momchil"]
[WhiteFideId "6100457"]
[BlackFideId "2921642"]
[WhiteElo "2134"]
[BlackElo "2522"]
[Result "0-1"]
[Round "01"]
[TimeControl "180+2"]
[Date "2023.01.31"]
[WhiteClock "0:00:16"]
[BlackClock "0:00:21"]

1. e4 {[%clk 0:02:59]}  c5 {[%clk 0:02:59]} 2. Nf3 {[%clk 0:02:57]}  e6 {[%clk 0:03:00]} 3. d4 {[%clk 0:02:56]}  cxd4 {[%clk 0:03:00]} 4. Nxd4 {[%clk 0:02:57]}  a6 {[%clk 0:03:01]} 5. Nc3 {[%clk 0:02:54]}  b5 {[%clk 0:03:01]} 6. a4 {[%clk 0:02:52]}  b4 {[%clk 0:03:01]} 7. Nce2 {[%clk 0:02:52]}  Bb7 {[%clk 0:03:02]} 8. Ng3 {[%clk 0:02:51]}  Qc7 {[%clk 0:03:00]} 9. Be2 {[%clk 0:02:45]}  Nf6 {[%clk 0:03:00]} 10. Bf3 {[%clk 0:02:41]}  Bd6 {[%clk 0:02:38]} 11. Qe2 {[%clk 0:02:37]}  Be5 {[%clk 0:02:36]} 12. Nb3 {[%clk 0:02:24]}  Nc6 {[%clk 0:02:20]} 13. O-O {[%clk 0:02:22]}  O-O {[%clk 0:02:21]} 14. Re1 {[%clk 0:02:05]}  Rac8 {[%clk 0:02:19]} 15. Nf1 {[%clk 0:01:58]}  a5 {[%clk 0:02:12]} 16. Rb1 {[%clk 0:01:48]}  Nd4 {[%clk 0:01:59]} 17. Nxd4 {[%clk 0:01:48]}  Bxd4 {[%clk 0:02:00]} 18. c3 {[%clk 0:01:26]}  bxc3 {[%clk 0:01:59]} 19. bxc3 {[%clk 0:01:27]}  Bxc3 {[%clk 0:01:59]} 20. Rd1 {[%clk 0:01:27]}  d5 {[%clk 0:01:42]} 21. exd5 {[%clk 0:01:21]}  Bxd5 {[%clk 0:01:42]} 22. Ne3 {[%clk 0:01:16]}  Bxf3 {[%clk 0:01:39]} 23. Qxf3 {[%clk 0:01:17]}  Be5 {[%clk 0:01:25]} 24. h3 {[%clk 0:01:13]}  Rfd8 {[%clk 0:01:15]} 25. Ba3 {[%clk 0:01:04]}  h6 {[%clk 0:01:05]} 26. Rdc1 {[%clk 0:00:55]}  Qd7 {[%clk 0:00:56]} 27. Rd1 {[%clk 0:00:54]}  Qxa4 {[%clk 0:00:54]} 28. Rxd8+ {[%clk 0:00:51]}  Rxd8 {[%clk 0:00:55]} 29. Be7 {[%clk 0:00:52]}  Rc8 {[%clk 0:00:46]} 30. Bxf6 {[%clk 0:00:49]}  Bxf6 {[%clk 0:00:46]} 31. Ng4 {[%clk 0:00:49]}  Bd4 {[%clk 0:00:37]} 32. Rb7 {[%clk 0:00:45]}  Qe8 {[%clk 0:00:21]} 33. g3 {[%clk 0:00:42]}  e5 {[%clk 0:00:21]} 34. Qf5 {[%clk 0:00:35]}  Qe6 {[%clk 0:00:21]} 35. Qxe6 {[%clk 0:00:17]}  fxe6 {[%clk 0:00:21]} 36. Kg2 {[%clk 0:00:17]}  a4 {[%clk 0:00:21]} 37. Rb5 {[%clk 0:00:16]}  Ra8 {[%clk 0:00:21]} 0-1


[Site "https://www.chess.com"]

[Event "Titled Tuesday Blitz January 31 Late 2023"]
[White "Kalajzic, Ivan"]
[Black "McCoy, Owen"]
[WhiteFideId "14506378"]
[BlackFideId "30924502"]
[WhiteElo "2062"]
[BlackElo "2085"]
[Result "0-1"]
[Round "01"]
[TimeControl "180+2"]
[Date "2023.01.31"]
[WhiteClock "0:02:03"]
[BlackClock "0:02:30"]

1. b3 {[%clk 0:02:59]}  d5 {[%clk 0:02:58]} 2. Bb2 {[%clk 0:02:58]}  Bg4 {[%clk 0:02:59]} 3. f3 {[%clk 0:02:58]}  Bf5 {[%clk 0:02:57]} 4. e4 {[%clk 0:02:57]}  dxe4 {[%clk 0:02:56]} 5. Qe2 {[%clk 0:02:57]}  exf3 {[%clk 0:02:50]} 6. Qb5+ {[%clk 0:02:54]}  Bd7 {[%clk 0:02:49]} 7. Qxb7 {[%clk 0:02:50]}  Nc6 {[%clk 0:02:49]} 8. Qa6 {[%clk 0:02:36]}  f2+ {[%clk 0:02:41]} 9. Kxf2 {[%clk 0:02:35]}  e5 {[%clk 0:02:41]} 10. Bb5 {[%clk 0:02:22]}  Bc5+ {[%clk 0:02:38]} 11. Kf1 {[%clk 0:02:22]}  Nge7 {[%clk 0:02:35]} 12. Qa4 {[%clk 0:02:10]}  a6 {[%clk 0:02:33]} 13. Bxc6 {[%clk 0:02:04]}  Nxc6 {[%clk 0:02:31]} 14. Qg4 {[%clk 0:02:03]}  Bxg4 {[%clk 0:02:30]} 0-1


[Site "https://www.chess.com"]

[Event "Titled Tuesday Blitz January 31 Late 2023"]
[White "Wilson, Elvin"]
[Black "Lewicki, Miroslaw"]
[WhiteFideId "2014874"]
[BlackFideId "1113380"]
[WhiteElo "2183"]
[BlackElo "2359"]
[Result "1-0"]
[Round "01"]
[TimeControl "180+2"]
[Date "2023.01.31"]
[WhiteClock "0:00:06"]
[BlackClock "0:00:01"]

1. c4 {[%clk 0:02:57]}  c5 {[%clk 0:02:59]} 2. g3 {[%clk 0:02:55]}  Nf6 {[%clk 0:02:59]} 3. Bg2 {[%clk 0:02:55]}  e6 {[%clk 0:03:00]} 4. Nf3 {[%clk 0:02:41]}  Be7 {[%clk 0:02:59]} 5. O-O {[%clk 0:02:30]}  O-O {[%clk 0:02:59]} 6. Nc3 {[%clk 0:02:31]}  Nc6 {[%clk 0:02:56]} 7. d4 {[%clk 0:02:31]}  cxd4 {[%clk 0:02:56]} 8. Nxd4 {[%clk 0:02:32]}  a6 {[%clk 0:02:57]} 9. b3 {[%clk 0:02:27]}  Qc7 {[%clk 0:02:55]} 10. Bb2 {[%clk 0:02:25]}  b6 {[%clk 0:02:52]} 11. Rc1 {[%clk 0:02:23]}  Bb7 {[%clk 0:02:52]} 12. Nd5 {[%clk 0:02:11]}  exd5 {[%clk 0:02:51]} 13. cxd5 {[%clk 0:02:11]}  Rad8 {[%clk 0:02:50]} 14. Qe1 {[%clk 0:01:59]}  Bc5 {[%clk 0:02:43]} 15. dxc6 {[%clk 0:01:55]}  dxc6 {[%clk 0:02:42]} 16. Nxc6 {[%clk 0:01:45]}  Bxc6 {[%clk 0:02:34]} 17. Bxc6 {[%clk 0:01:45]}  Qxc6 {[%clk 0:02:30]} 18. b4 {[%clk 0:01:45]}  Ng4 {[%clk 0:01:52]} 19. bxc5 {[%clk 0:01:41]}  Qh6 {[%clk 0:01:51]} 20. h4 {[%clk 0:01:34]}  Rd2 {[%clk 0:01:45]} 21. Rb1 {[%clk 0:01:12]}  Rc2 {[%clk 0:00:50]} 22. cxb6 {[%clk 0:01:07]}  Re8 {[%clk 0:00:49]} 23. b7 {[%clk 0:01:04]}  Qd6 {[%clk 0:00:46]} 24. Qd1 {[%clk 0:00:38]}  Qc7 {[%clk 0:00:27]} 25. Qd4 {[%clk 0:00:20]}  Ne5 {[%clk 0:00:16]} 26. Rfc1 {[%clk 0:00:19]}  Rxc1+ {[%clk 0:00:10]} 27. Bxc1 {[%clk 0:00:17]}  Nc6 {[%clk 0:00:06]} 28. Qc5 {[%clk 0:00:16]}  Qd7 {[%clk 0:00:05]} 29. Bf4 {[%clk 0:00:14]}  f6 {[%clk 0:00:01]} 30. Kg2 {[%clk 0:00:10]}  h6 {[%clk 0:00:02]} 31. h5 {[%clk 0:00:10]}  Kh7 {[%clk 0:00:02]} 32. Qc2+ {[%clk 0:00:10]}  f5 {[%clk 0:00:02]} 33. Rb6 {[%clk 0:00:08]}  Nd4 {[%clk 0:00:01]} 34. Qd3 {[%clk 0:00:06]}  Qd5+ {[%clk 0:00:01]} 35. f3 {[%clk 0:00:06]} 1-0


[Site "https://www.chess.com"]

[Event "Titled Tuesday Blitz January 31 Late 2023"]
[White "Manukyan, Sargis A."]
[Black "Polanco Nunez, Yoel Estarling"]
[WhiteFideId "13303970"]
[BlackFideId "6401783"]
[WhiteElo "2158"]
[BlackElo "2162"]
[Result "1/2-1/2"]
[Round "01"]
[TimeControl "180+2"]
[Date "2023.01.31"]
[WhiteClock "0:00:16"]
[BlackClock "0:00:20"]

1. d4 {[%clk 0:03:00]}  Nf6 {[%clk 0:02:59]} 2. e3 {[%clk 0:03:00]}  d5 {[%clk 0:02:57]} 3. Nf3 {[%clk 0:03:01]}  Bf5 {[%clk 0:02:56]} 4. Be2 {[%clk 0:03:01]}  e6 {[%clk 0:02:55]} 5. O-O {[%clk 0:03:02]}  Bd6 {[%clk 0:02:49]} 6. b3 {[%clk 0:03:01]}  Nbd7 {[%clk 0:02:48]} 7. Bb2 {[%clk 0:02:59]}  O-O {[%clk 0:02:46]} 8. Nbd2 {[%clk 0:02:57]}  c5 {[%clk 0:02:45]} 9. Ne5 {[%clk 0:02:44]}  Qc7 {[%clk 0:02:44]} 10. f4 {[%clk 0:02:17]}  cxd4 {[%clk 0:02:41]} 11. exd4 {[%clk 0:02:17]}  Qxc2 {[%clk 0:02:34]} 12. Qxc2 {[%clk 0:02:09]}  Bxc2 {[%clk 0:02:33]} 13. Rac1 {[%clk 0:02:10]}  Rfc8 {[%clk 0:02:29]} 14. Bb5 {[%clk 0:02:06]}  Nf8 {[%clk 0:02:13]} 15. g4 {[%clk 0:02:05]}  Ne4 {[%clk 0:02:08]} 16. Nxe4 {[%clk 0:02:03]}  Bxe4 {[%clk 0:02:09]} 17. g5 {[%clk 0:01:44]}  a6 {[%clk 0:02:08]} 18. Be2 {[%clk 0:01:42]}  Ng6 {[%clk 0:02:08]} 19. Rxc8+ {[%clk 0:01:34]}  Rxc8 {[%clk 0:02:08]} 20. Bd1 {[%clk 0:01:35]}  Nxe5 {[%clk 0:01:57]} 21. fxe5 {[%clk 0:01:32]}  Be7 {[%clk 0:01:57]} 22. h4 {[%clk 0:01:32]}  Bb4 {[%clk 0:01:56]} 23. Kf2 {[%clk 0:01:11]}  Bc3 {[%clk 0:01:55]} 24. Bxc3 {[%clk 0:01:10]}  Rxc3 {[%clk 0:01:56]} 25. Be2 {[%clk 0:01:06]}  g6 {[%clk 0:01:51]} 26. Rg1 {[%clk 0:01:01]}  Rc2 {[%clk 0:01:50]} 27. Ke3 {[%clk 0:01:01]}  Rxa2 {[%clk 0:01:49]} 28. Rc1 {[%clk 0:01:02]}  Rc2 {[%clk 0:01:39]} 29. Rxc2 {[%clk 0:00:57]}  Bxc2 {[%clk 0:01:40]} 30. b4 {[%clk 0:00:58]}  Kf8 {[%clk 0:01:35]} 31. Kd2 {[%clk 0:00:58]}  Ba4 {[%clk 0:01:34]} 32. Kc3 {[%clk 0:00:59]}  Bb5 {[%clk 0:01:26]} 33. Bf3 {[%clk 0:00:59]}  Ke7 {[%clk 0:01:23]} 34. Kb3 {[%clk 0:01:00]}  Kd7 {[%clk 0:01:23]} 35. Ka3 {[%clk 0:01:00]}  Kc6 {[%clk 0:01:23]} 36. Bd1 {[%clk 0:01:01]}  b6 {[%clk 0:01:22]} 37. Bc2 {[%clk 0:01:00]}  a5 {[%clk 0:01:20]} 38. Bd1 {[%clk 0:01:00]}  axb4+ {[%clk 0:01:19]} 39. Kxb4 {[%clk 0:01:01]}  Bc4 {[%clk 0:01:18]} 40. h5 {[%clk 0:01:01]}  Bd3 {[%clk 0:01:11]} 41. h6 {[%clk 0:01:01]}  Bb5 {[%clk 0:01:09]} 42. Bb3 {[%clk 0:00:58]}  Be2 {[%clk 0:00:58]} 43. Ba4+ {[%clk 0:00:57]}  b5 {[%clk 0:00:58]} 44. Bc2 {[%clk 0:00:57]}  Kb6 {[%clk 0:00:59]} 45. Bb3 {[%clk 0:00:55]}  Bf3 {[%clk 0:00:58]} 46. Bc2 {[%clk 0:00:54]}  Be2 {[%clk 0:00:58]} 47. Bb1 {[%clk 0:00:54]}  Bf1 {[%clk 0:00:58]} 48. Ba2 {[%clk 0:00:54]}  Bc4 {[%clk 0:00:59]} 49. Bb1 {[%clk 0:00:53]}  Bf1 {[%clk 0:00:59]} 50. Bc2 {[%clk 0:00:53]}  Bc4 {[%clk 0:00:59]} 51. Bd1 {[%clk 0:00:53]}  Bf1 {[%clk 0:00:59]} 52. Bg4 {[%clk 0:00:52]}  Bc4 {[%clk 0:00:58]} 53. Bf3 {[%clk 0:00:52]}  Bf1 {[%clk 0:00:56]} 54. Bh1 {[%clk 0:00:49]}  Be2 {[%clk 0:00:54]} 55. Bg2 {[%clk 0:00:49]}  Bd3 {[%clk 0:00:53]} 56. Bh3 {[%clk 0:00:49]}  Be2 {[%clk 0:00:53]} 57. Bg2 {[%clk 0:00:48]}  Bc4 {[%clk 0:00:53]} 58. Bf3 {[%clk 0:00:46]}  Bf1 {[%clk 0:00:53]} 59. Bg4 {[%clk 0:00:46]}  Bc4 {[%clk 0:00:53]} 60. Bd1 {[%clk 0:00:45]}  Bf1 {[%clk 0:00:53]} 61. Bc2 {[%clk 0:00:41]}  Bc4 {[%clk 0:00:54]} 62. Kc3 {[%clk 0:00:38]}  Ka5 {[%clk 0:00:53]} 63. Bd1 {[%clk 0:00:39]}  b4+ {[%clk 0:00:53]} 64. Kb2 {[%clk 0:00:39]}  Bb5 {[%clk 0:00:52]} 65. Bf3 {[%clk 0:00:35]}  Ba4 {[%clk 0:00:49]} 66. Be2 {[%clk 0:00:35]}  Bb5 {[%clk 0:00:47]} 67. Bd1 {[%clk 0:00:36]}  Bc4 {[%clk 0:00:47]} 68. Bc2 {[%clk 0:00:35]}  Kb5 {[%clk 0:00:43]} 69. Bd1 {[%clk 0:00:34]}  Bd3 {[%clk 0:00:43]} 70. Bb3 {[%clk 0:00:33]}  Be2 {[%clk 0:00:43]} 71. Ba2 {[%clk 0:00:29]}  Bc4 {[%clk 0:00:42]} 72. Bb1 {[%clk 0:00:29]}  b3 {[%clk 0:00:43]} 73. Ka3 {[%clk 0:00:24]}  b2 {[%clk 0:00:39]} 74. Kxb2 {[%clk 0:00:19]}  Kb4 {[%clk 0:00:39]} 75. Kc2 {[%clk 0:00:19]}  Bb5 {[%clk 0:00:37]} 76. Kd2 {[%clk 0:00:19]}  Kc4 {[%clk 0:00:37]} 77. Bd3+ {[%clk 0:00:17]}  Kb4 {[%clk 0:00:36]} 78. Bc2 {[%clk 0:00:17]}  Bf1 {[%clk 0:00:30]} 79. Ke3 {[%clk 0:00:16]}  Bb5 {[%clk 0:00:29]} 80. Bd1 {[%clk 0:00:16]}  Kc3 {[%clk 0:00:29]} 81. Bg4 {[%clk 0:00:15]}  Bc6 {[%clk 0:00:26]} 82. Bf3 {[%clk 0:00:15]}  Bb5 {[%clk 0:00:26]} 83. Bd1 {[%clk 0:00:16]}  Kb4 {[%clk 0:00:26]} 84. Kd2 {[%clk 0:00:15]}  Bc4 {[%clk 0:00:20]} 85. Ke3 {[%clk 0:00:15]}  Bb5 {[%clk 0:00:20]} 86. Bc2 {[%clk 0:00:15]}  Bc4 {[%clk 0:00:20]} 87. Bd1 {[%clk 0:00:16]}  Bb5 {[%clk 0:00:20]} 1/2-1/2


[Site "https://www.chess.com"]

[Event "Titled Tuesday Blitz January 31 Late 2023"]
[White "Barbosa, Evandro Amorim"]
[Black "OKEKE, Isaac Chukwudalu"]
[WhiteFideId "2115824"]
[BlackFideId "8508526"]
[WhiteElo "2491"]
[BlackElo "2155"]
[Result "0-1"]
[Round "01"]
[TimeControl "180+2"]
[Date "2023.01.31"]
[WhiteClock "0:01:24"]
[BlackClock "0:01:21"]

1. e4 {[%clk 0:02:54]}  c5 {[%clk 0:03:00]} 2. Nf3 {[%clk 0:02:54]}  d6 {[%clk 0:03:00]} 3. d4 {[%clk 0:02:55]}  cxd4 {[%clk 0:02:59]} 4. Nxd4 {[%clk 0:02:56]}  Nf6 {[%clk 0:03:00]} 5. Nc3 {[%clk 0:02:55]}  a6 {[%clk 0:03:00]} 6. g3 {[%clk 0:02:55]}  g6 {[%clk 0:02:57]} 7. Bg2 {[%clk 0:02:55]}  Bg7 {[%clk 0:02:57]} 8. O-O {[%clk 0:02:55]}  O-O {[%clk 0:02:57]} 9. Re1 {[%clk 0:02:55]}  Qc7 {[%clk 0:02:57]} 10. h3 {[%clk 0:02:55]}  Nc6 {[%clk 0:02:58]} 11. Be3 {[%clk 0:02:54]}  Bd7 {[%clk 0:02:55]} 12. Nd5 {[%clk 0:02:51]}  Nxd5 {[%clk 0:02:48]} 13. exd5 {[%clk 0:02:52]}  Nxd4 {[%clk 0:02:41]} 14. Bxd4 {[%clk 0:02:53]}  Bxd4 {[%clk 0:02:36]} 15. Qxd4 {[%clk 0:02:54]}  Rfe8 {[%clk 0:02:32]} 16. c3 {[%clk 0:02:54]}  Rac8 {[%clk 0:02:32]} 17. Re3 {[%clk 0:02:52]}  e5 {[%clk 0:02:30]} 18. dxe6 {[%clk 0:02:51]}  Bxe6 {[%clk 0:02:27]} 19. h4 {[%clk 0:02:48]}  b5 {[%clk 0:02:20]} 20. h5 {[%clk 0:02:47]}  Qc5 {[%clk 0:02:20]} 21. Qxc5 {[%clk 0:02:30]}  Rxc5 {[%clk 0:02:21]} 22. h6 {[%clk 0:02:26]}  Kf8 {[%clk 0:02:10]} 23. a4 {[%clk 0:02:25]}  bxa4 {[%clk 0:01:48]} 24. Rxa4 {[%clk 0:02:26]}  a5 {[%clk 0:01:47]} 25. b4 {[%clk 0:02:23]}  axb4 {[%clk 0:01:47]} 26. cxb4 {[%clk 0:02:23]}  Rc1+ {[%clk 0:01:46]} 27. Kh2 {[%clk 0:02:23]}  Rb8 {[%clk 0:01:45]} 28. Rd3 {[%clk 0:01:48]}  Rc2 {[%clk 0:01:41]} 29. Kg1 {[%clk 0:01:46]}  Rc1+ {[%clk 0:01:38]} 30. Kh2 {[%clk 0:01:44]}  Rc2 {[%clk 0:01:38]} 31. f4 {[%clk 0:01:37]}  Bf5 {[%clk 0:01:32]} 32. Rd4 {[%clk 0:01:35]}  Re8 {[%clk 0:01:23]} 33. g4 {[%clk 0:01:24]}  Be4 {[%clk 0:01:21]} 0-1


[Site "https://www.chess.com"]